bitfinex/quotes_ETHUSD_20251023
["timestamp","ask_amount","ask_price","bid_price","bid_amount"]
[1761204700039,2.57175187,3888.4,3886.0,0.2315]
[1761204700341,6.84168734,3888.8,3886.0,0.2315]
[1761204700342,2.57280207,3886.9,3886.0,0.2315]
[1761204700507,2.57299557,3886.6,3886.0,0.2315]
[1761204700928,2.79318791,3886.7,3885.8,0.4599]
[1761204701238,2.57308099,3886.4,3885.8,0.4599]
[1761204701711,2.57302567,3886.5,3885.6,2.57359961]
[1761204702035,2.57302567,3886.5,3885.7,2.88353102]
[1761204702408,2.57302567,3886.5,3886.0,0.002]
[1761204702940,2.57302461,3886.5,3886.0,0.002]
[1761204704142,2.57294765,3886.6,3886.0,0.002]
[1761204704543,0.2203,3886.7,3886.0,0.002]
[1761204704544,2.57320369,3886.3,3886.0,0.002]
[1761204704862,2.57327397,3886.1,3886.0,0.002]
[1761204705019,2.57321781,3886.2,3886.0,0.002]
[1761204705219,0.2203,3886.7,3886.0,0.002]
[1761204705419,2.79317964,3886.7,3886.0,0.002]
[1761204705618,2.57309953,3886.4,3886.0,0.002]
[1761204705926,1.5552,3886.2,3886.0,0.002]
[1761204706155,2.57321366,3886.2,3886.0,0.002]
[1761204708315,2.57327397,3886.1,3886.0,0.002]
[1761204708562,4.12847397,3886.1,3886.0,0.002]
[1761204709255,1.5552,3886.1,3886.0,0.002]
[1761204710158,1.684,3886.1,3886.0,0.002]
[1761204711966,4.25727397,3886.1,3886.0,0.002]
[1761204712375,1.684,3886.1,3886.0,0.002]
[1761204715061,0.1288,3886.4,3886.1,0.50688]
[1761204715277,0.2203,3887.1,3886.1,0.50688]
[1761204715278,0.1288,3886.5,3886.1,3.30335397]
[1761204715575,0.1288,3886.7,3886.4,2.57306823]
[1761204715794,0.1288,3886.8,3886.4,2.57306823]
[1761204716089,0.1288,3886.9,3886.5,3.03288891]
[1761204716394,3.5483,3887.6,3886.6,0.50688]
[1761204716579,0.1288,3887.2,3886.7,0.4599]
[1761204717345,1.684,3887.2,3886.7,0.4599]
[1761204717591,0.2203,3888.3,3887.2,0.50688]
[1761204717893,0.1288,3887.7,3887.2,0.50688]
[1761204718266,0.1288,3887.7,3887.2,3.53932355]
[1761204719555,0.1288,3887.7,3887.4,2.5723627]
[1761204719754,1.5552,3887.8,3887.4,2.5723627]
[1761204719755,1.5552,3887.8,3887.5,0.4334]
[1761204720393,0.1288,3887.9,3887.5,0.4334]
[1761204720586,0.1288,3887.9,3887.4,0.50688]
[1761204720894,2.70088286,3887.9,3887.4,0.50688]
[1761204721082,0.1288,3887.9,3887.4,0.50688]
[1761204721462,0.1288,3887.9,3887.4,0.94028]
[1761204722266,0.1288,3887.9,3887.5,0.4334]
[1761204722807,0.128,3887.9,3887.4,0.50688]
[1761204723102,0.128,3887.9,3887.4,0.94028]
[1761204723606,0.128,3887.9,3887.4,0.50688]
[1761204724996,2.98229612,3887.9,3887.4,0.50688]
[1761204725188,3.20289612,3887.9,3887.4,0.50688]
[1761204725383,0.2819,3887.8,3887.4,0.50688]
[1761204726297,0.3486,3887.9,3887.4,0.50688]
[1761204726502,0.6305,3887.9,3887.4,0.50688]
[1761204727006,3.20258483,3887.9,3887.4,0.50688]
[1761204727489,0.6305,3887.9,3887.4,0.50688]
[1761204727971,3.20258749,3887.9,3887.4,0.50688]
[1761204728180,0.6305,3887.9,3887.4,0.50688]
[1761204728395,3.20259668,3887.9,3887.4,0.50688]
[1761204728601,0.6305,3887.9,3887.4,0.50688]
[1761204730833,0.128,3887.9,3887.4,0.94028]
[1761204731118,0.128,3887.9,3887.4,3.51267154]
[1761204731294,0.128,3887.9,3887.4,3.07927154]
[1761204731492,0.128,3887.9,3887.5,0.4334]
[1761204732103,0.128,3887.9,3887.4,3.07927154]
[1761204732307,0.128,3887.9,3887.4,3.51267154]
[1761204733105,0.556,3887.9,3887.4,0.50688]
[1761204734014,0.4316,3887.8,3887.4,0.50688]
[1761204735500,0.4316,3887.8,3887.4,3.07929191]
[1761204735814,0.2206,3888.6,3887.5,0.4334]
[1761204736010,0.2024,3889.2,3888.5,2.57168349]
[1761204736234,0.2024,3889.2,3888.5,0.50688]
[1761204736235,0.1288,3888.8,3888.5,0.50688]
[1761204736414,0.1288,3888.9,3888.5,0.50688]
[1761204736739,0.1288,3888.9,3888.4,2.78143193]
[1761204736932,0.1288,3888.9,3888.4,3.21483193]
[1761204737235,0.1288,3888.9,3887.3,0.4334]
[1761204737236,0.6426,3888.8,3887.3,0.4334]
[1761204737407,0.1288,3888.5,3887.9,2.70087316]
[1761204737608,2.57180868,3888.4,3888.0,3.314]
[1761204737932,0.1288,3888.3,3888.0,3.314]
[1761204738145,0.1288,3888.3,3888.1,0.2097]
[1761204738499,0.1288,3888.3,3888.0,3.314]
[1761204738704,0.5508,3888.3,3888.0,3.314]
[1761204739138,0.1288,3888.1,3888.0,3.314]
[1761204739303,1.684,3888.1,3888.0,3.314]
[1761204739504,0.1288,3888.1,3888.0,3.314]
[1761204740046,2.7007503,3888.1,3888.0,3.314]
[1761204740230,3.1227503,3888.1,3887.4,0.002]
[1761204740432,0.1288,3887.6,3887.5,3.312]
[1761204741705,0.1288,3887.6,3887.5,5.88434726]
[1761204742012,0.1288,3887.6,3887.5,3.312]
[1761204744248,0.5474,3887.6,3887.5,3.31]
[1761204744614,0.5474,3887.6,3887.4,0.002]
[1761204744840,0.5474,3887.6,3887.4,3.312]
[1761204745238,0.1288,3887.6,3887.4,3.312]
[1761204747011,0.128,3887.6,3887.4,3.312]
[1761204748554,2.70034691,3887.6,3887.4,0.002]
[1761204748854,7.85314726,3887.5,3887.4,0.002]
[1761204756453,7.98194726,3887.5,3887.4,0.002]
[1761204766377,7.56334726,3887.5,3887.4,0.002]
[1761204770600,0.1288,3887.5,3887.4,0.4739]
[1761204770947,0.1288,3887.5,3887.4,0.32887387]
[1761204771265,0.1288,3887.5,3887.4,0.002]
[1761204771476,0.128,3887.5,3887.4,0.4739]
[1761204774444,0.128,3887.5,3887.4,3.04631343]
[1761204774678,0.001,3887.9,3887.8,2.57214877]
[1761204774867,0.1288,3887.8,3887.7,2.57220351]
[1761204775063,0.1288,3887.8,3887.7,3.1847394]
[1761204775265,0.1288,3887.8,3887.7,3.6566394]
[1761204775464,0.001,3887.9,3887.8,2.57214877]
[1761204775665,0.1298,3887.9,3887.8,3.04404877]
[1761204775869,0.1298,3887.9,3887.8,0.4719]
[1761204776072,0.1298,3887.9,3887.8,3.66694111]
[1761204776886,0.001,3887.9,3887.8,3.66694111]
[1761204780012,0.001,3887.9,3887.8,1.09479234]
[1761204780153,0.001,3887.9,3887.7,3.306]
[1761204780358,0.1288,3887.8,3887.4,0.4611]
[1761204780713,0.1288,3887.5,3887.4,3.308]
[1761204782780,0.1288,3887.5,3887.4,0.002]
[1761204784875,0.5567,3887.5,3887.4,0.002]
[1761204785213,4.68424726,3887.5,3887.4,0.002]
[1761204785612,4.55544726,3887.5,3887.4,0.002]
[1761204786417,4.55544726,3887.5,3886.0,3.307]
[1761204786418,5.79475673,3886.7,3886.0,0.002]
[1761204786715,6.84347397,3886.1,3886.0,0.002]
[1761204786887,9.83883534,3886.1,3886.0,0.002]
[1761204787080,12.97973534,3886.1,3886.0,0.002]
[1761204787508,10.26473534,3886.1,3886.0,0.002]
[1761204787727,10.36781497,3886.1,3886.0,0.002]
[1761204788089,4.12873887,3885.7,3885.6,0.002]
[1761204788316,6.53410024,3885.7,3885.6,0.002]
[1761204788495,6.96740024,3885.7,3885.6,0.002]
[1761204788697,4.56203887,3885.7,3885.6,0.002]
[1761204791339,4.77803887,3885.7,3885.6,0.002]
[1761204791852,8.08403887,3885.7,3885.6,0.002]
[1761204795548,8.21283887,3885.7,3885.6,0.002]
[1761204796042,8.21203887,3885.7,3885.6,0.002]
[1761204796342,13.88392227,3885.7,3885.6,0.002]
[1761204798520,2.57406883,3884.9,3884.8,0.002]
[1761204798716,7.77166883,3884.9,3884.8,0.002]
[1761204798912,4.12926883,3884.9,3884.8,0.002]
[1761204799232,7.69700875,3884.9,3884.8,0.002]
[1761204799815,7.56506883,3884.9,3884.8,0.002]
[1761204800215,4.25806883,3884.9,3884.8,0.4611]
[1761204800416,7.56506883,3884.9,3884.8,0.002]
[1761204801443,7.43626883,3884.9,3884.8,0.4611]
[1761204801635,7.56506883,3884.9,3884.8,0.002]
[1761204807225,1.684,3884.9,3884.8,0.4492]
[1761204807625,0.1288,3884.9,3884.8,1.6492]
[1761204808467,4.25806883,3884.9,3884.8,1.202]
[1761204808671,4.25806883,3884.9,3884.8,0.002]
[1761204809629,7.97506883,3884.9,3884.8,0.002]
[1761204810648,6.41986883,3884.9,3884.8,0.002]
[1761204810852,8.42509954,3884.9,3884.8,0.002]
[1761204811053,8.01509954,3884.9,3884.8,0.002]
[1761204814362,8.01509954,3884.9,3884.8,0.4659]
[1761204814363,0.1288,3884.9,3884.8,0.4659]
[1761204814568,2.70286883,3884.9,3884.8,0.4659]
[1761204814780,4.70809954,3884.9,3884.8,0.002]
[1761204816262,5.11809954,3884.9,3884.8,0.002]
[1761204816458,4.70809954,3884.9,3884.8,0.002]
[1761204816671,4.98929954,3884.9,3884.8,0.002]
[1761204817041,8.54973025,3884.9,3884.8,0.002]
[1761204817464,4.12953389,3884.5,3884.4,0.002]
[1761204817663,9.4417646,3884.5,3884.4,0.002]
[1761204817864,9.8517646,3884.5,3884.4,0.002]
[1761204818475,11.85699531,3884.5,3884.4,0.002]
[1761204819382,9.8517646,3884.5,3884.4,0.002]
[1761204819879,11.85699531,3884.5,3884.4,0.002]
[1761204820085,10.3156646,3884.5,3884.4,0.002]
[1761204820690,10.3148646,3884.5,3884.4,0.002]
[1761204825366,7.89963389,3884.5,3884.4,0.002]
[1761204825560,9.9048646,3884.5,3884.4,0.002]
[1761204826678,10.0336646,3884.5,3884.4,0.002]
[1761204828155,10.4436646,3884.5,3884.4,0.002]
[1761204829177,10.0336646,3884.5,3884.4,0.002]
[1761204831268,0.4639,3884.5,3884.4,0.002]
[1761204831490,7.90043389,3884.5,3884.4,0.4659]
[1761204833005,5.3261,3884.5,3884.4,0.4659]
[1761204833191,7.90043389,3884.5,3884.4,0.002]
[1761204835299,7.89943389,3884.5,3884.4,0.4659]
[1761204836389,7.43553389,3884.5,3884.4,0.4659]
[1761204837976,7.43553389,3884.5,3884.4,0.002]
[1761204839907,7.43653389,3884.5,3884.4,0.002]
[1761204841320,7.56533389,3884.5,3884.4,0.002]
[1761204842411,7.56533389,3884.5,3884.4,0.4627]
[1761204843079,0.1298,3884.5,3884.4,0.4627]
[1761204844289,0.1298,3884.5,3884.4,0.78839808]
[1761204844529,0.001,3884.5,3884.4,0.4627]
[1761204844884,2.57533389,3884.5,3884.4,1.6627]
[1761204845193,2.57453389,3884.5,3884.4,1.6627]
[1761204845517,0.0002,3884.5,3884.4,1.6627]
[1761204851802,0.0002,3884.5,3884.4,8.04798016]
[1761204852120,0.0002,3884.5,3884.4,9.14508698]
[1761204854023,0.0002,3884.5,3884.4,6.57068682]
[1761204859210,0.0002,3884.5,3884.4,9.14508698]
[1761204862447,0.0002,3884.5,3884.4,11.15031769]
[1761204864850,0.0002,3884.5,3884.4,5.84108698]
[1761204865154,0.0002,3884.5,3884.4,9.14408698]
[1761204865926,0.0002,3884.5,3884.4,2.80598682]
[1761204866140,0.0002,3884.5,3884.4,8.05508016]
[1761204869424,0.0004,3884.9,3884.4,7.58628016]
[1761204869658,0.0004,3884.9,3884.6,2.57421979]
[1761204869960,0.0004,3884.9,3884.7,3.7424]
[1761204870449,0.0004,3884.9,3884.8,0.4404]
[1761204870635,0.0004,3884.9,3884.8,3.01453509]
[1761204870839,0.0004,3884.9,3884.8,3.6461886]
[1761204871158,0.0004,3884.9,3884.8,0.63165351]
[1761204871659,0.0004,3884.9,3884.8,1.07205351]
[1761204872029,0.0004,3884.9,3884.8,3.6461886]
[1761204872259,0.0004,3884.9,3884.8,1.07205351]
[1761204872455,0.0004,3884.9,3884.8,3.6461886]
[1761204872672,0.0004,3884.9,3884.8,4.1530686]
[1761204872827,0.0004,3884.9,3884.8,1.57893351]
[1761204873028,0.0004,3884.9,3884.8,4.1530686]
[1761204873240,0.0004,3884.9,3884.8,1.57893351]
[1761204873541,0.0004,3884.9,3884.8,4.1530686]
[1761204874144,0.0004,3884.9,3884.8,3.93365351]
[1761204874434,0.0004,3884.9,3884.8,0.63165351]
[1761204874634,0.0004,3884.9,3884.5,2.5743149]
[1761204874848,0.1292,3884.9,3884.6,3.302]
[1761204875049,0.1292,3884.9,3884.6,5.87625833]
[1761204875359,0.1292,3884.9,3884.6,6.31665833]
[1761204875561,0.1292,3884.9,3884.6,3.7424]
[1761204879330,0.1292,3884.9,3884.7,2.57417088]
[1761204879560,0.1292,3884.9,3884.6,7.33885561]
[1761204880037,0.1292,3884.9,3884.6,4.76459816]
[1761204880764,0.1288,3884.7,3884.6,3.301]
[1761204881063,2.70305868,3884.7,3884.4,4.503]
[1761204881267,0.1288,3884.5,3884.4,4.503]
[1761204881686,0.589,3884.5,3884.4,4.503]
[1761204881834,5.5677936,3884.5,3884.4,1.202]
[1761204885458,7.1229936,3884.5,3884.4,1.202]
[1761204885843,10.4239936,3884.5,3884.4,1.202]
[1761204886040,10.4239936,3884.5,3884.4,0.002]
[1761204891653,4.25833389,3884.5,3884.4,0.002]
[1761204891856,4.71853389,3884.5,3884.4,0.002]
[1761204892254,4.25833389,3884.5,3884.4,0.002]
[1761204893796,1.684,3884.5,3884.4,0.002]
[1761204893955,1.6832,3884.5,3884.4,0.002]
[1761204895577,4.71773389,3884.5,3884.4,0.002]
[1761204896083,1.6832,3884.5,3884.4,0.002]
[1761204896968,4.25753389,3884.5,3884.4,0.002]
[1761204901396,1.6832,3884.5,3884.4,0.4509]
[1761204901584,1.6832,3884.5,3884.4,0.002]
[1761204903397,4.25753389,3884.5,3884.4,0.002]
[1761204903825,4.71093389,3884.5,3884.4,0.002]
[1761204905226,4.25753389,3884.5,3884.4,0.002]
[1761204905602,4.71093389,3884.5,3884.4,0.002]
[1761204905807,7.1153936,3884.5,3884.4,0.002]
[1761204906408,4.71093389,3884.5,3884.4,0.002]
[1761204906728,4.25753389,3884.5,3884.4,0.002]
[1761204907633,4.25753389,3884.5,3884.4,0.4509]
[1761204908138,1.6832,3884.5,3884.4,0.4509]
[1761204909731,0.1288,3884.5,3884.4,0.77541788]
[1761204909903,0.1288,3884.5,3884.4,0.4509]
[1761204911533,0.0004,3884.9,3884.4,0.4509]
[1761204911704,0.1292,3884.9,3884.5,0.65698126]
[1761204911903,0.1292,3884.9,3884.5,1.10588126]
[1761204912416,0.1288,3884.6,3884.5,1.10588126]
[1761204916234,0.1298,3884.6,3884.5,1.10588126]
[1761204918426,0.129,3884.6,3884.5,1.10588126]
[1761204922352,0.129,3884.6,3884.5,0.65698126]
[1761204922857,0.129,3884.6,3884.4,1.202]
[1761204923023,0.5824,3884.6,3884.4,1.202]
[1761204923221,0.129,3884.6,3884.4,1.202]
[1761204923423,0.129,3884.6,3884.4,4.499]
[1761204925371,0.4602,3884.5,3884.4,4.499]
[1761204926635,0.129,3884.6,3884.4,4.499]
[1761204926837,2.57433389,3884.5,3884.4,1.202]
[1761204927267,3.03453389,3884.5,3884.4,1.202]
[1761204928164,4.70822893,3884.6,3884.4,1.202]
[1761204928363,2.70329161,3884.6,3884.4,1.202]
[1761204928766,2.57433389,3884.5,3884.4,1.202]
[1761204929670,3.15868566,3884.6,3884.4,1.202]
[1761204929842,2.57433389,3884.5,3884.4,1.202]
[1761204930236,3.02973389,3884.5,3884.4,1.202]
[1761204932170,2.57433389,3884.5,3884.4,1.202]
[1761204932581,2.70328006,3884.6,3884.4,1.202]
[1761204933900,0.129,3884.6,3884.4,1.202]
[1761204934500,2.57433389,3884.5,3884.4,1.202]
[1761204934699,4.57927121,3884.5,3884.4,1.202]
[1761204935068,5.03467121,3884.5,3884.4,1.202]
[1761204939336,6.58987121,3884.5,3884.4,1.202]
[1761204939499,8.59480853,3884.5,3884.4,1.202]
[1761204939699,6.58987121,3884.5,3884.4,1.202]
[1761204940929,8.59480853,3884.5,3884.4,1.202]
[1761204941134,8.59480853,3884.5,3884.4,0.002]
[1761204942229,4.129799,3884.1,3884.0,0.002]
[1761204942429,9.42973632,3884.1,3884.0,0.002]
[1761204942747,9.88513632,3884.1,3884.0,0.002]
[1761204942948,9.88433632,3884.1,3884.0,0.002]
[1761204943107,2.57486417,3883.7,3883.6,0.002]
[1761204943445,9.43000149,3883.7,3883.6,0.002]
[1761204943642,9.88380149,3883.7,3883.6,0.002]
[1761204946037,9.43000149,3883.7,3883.6,0.002]
[1761204946423,9.88380149,3883.7,3883.6,0.002]
[1761204949534,10.01260149,3883.7,3883.6,0.002]
[1761204953391,9.55880149,3883.7,3883.6,0.002]
[1761204953795,10.01260149,3883.7,3883.6,0.002]
[1761204957956,10.01260149,3883.7,3881.9,2.70483825]
[1761204957957,4.2662,3883.6,3881.8,0.4679]
[1761204958176,2.00493732,3882.4,3881.9,0.4679]
[1761204958457,1.5552,3882.7,3881.9,0.4679]
[1761204958659,5.86948009,3882.8,3882.0,2.84902214]
[1761204958896,7.42468009,3882.8,3882.7,0.2139]
[1761204959253,1.5552,3882.6,3880.3,2.57711187]
[1761204959473,4.58082061,3882.2,3881.3,2.79034944]
[1761204959672,4.1309345,3882.4,3881.3,2.79034944]
[1761204959876,1.5552,3882.4,3881.4,5.05201208]
[1761204960118,2.575727,3882.4,3882.3,0.2139]
[1761204960271,2.575727,3882.4,3881.3,5.400967]
[1761204960272,2.57593224,3882.1,3881.8,0.4707]
[1761204961071,2.57601168,3882.0,3881.3,0.2139]
[1761204961275,2.57601168,3882.0,3881.4,0.4707]
[1761204961505,2.57585904,3882.2,3881.4,0.4707]
[1761204961705,2.00493732,3882.0,3881.4,0.4707]
[1761204961883,2.57611472,3881.9,3881.4,0.4707]
[1761204962202,2.00493732,3882.0,3881.4,0.4707]
[1761204962404,2.57586055,3882.2,3881.4,0.4707]
[1761204962603,2.57585904,3882.2,3881.4,0.4707]
[1761204962921,2.57590704,3882.2,3881.4,0.4707]
[1761204963073,3.294,3882.3,3881.5,2.57631861]
[1761204963279,1.5552,3882.4,3881.7,2.57612642]
[1761204963525,4.13092857,3882.4,3882.2,0.2139]
[1761204963856,4.1309927,3882.3,3882.2,0.2139]
[1761204963986,4.1309927,3882.3,3882.2,0.6846]
[1761204964325,4.1309927,3882.3,3881.5,0.58374169]
[1761204964326,2.57596357,3882.1,3881.5,0.58374169]
[1761204964510,2.57596357,3882.1,3881.7,0.4707]
[1761204964989,2.57587763,3882.2,3881.7,0.4707]
[1761204965189,1.5552,3882.3,3881.7,0.4707]
[1761204965394,2.57586901,3882.2,3881.7,0.4707]
[1761204965796,4.13099326,3882.3,3881.7,0.4707]
[1761204965995,2.00493732,3882.2,3881.1,3.294]
[1761204966200,2.57617363,3881.8,3881.3,0.6846]
[1761204966435,2.00493732,3881.6,3881.3,0.2139]
[1761204966590,0.4497,3881.5,3880.7,0.77363752]
[1761204966786,2.57657827,3881.2,3880.7,0.77363752]
[1761204967201,2.57658945,3881.1,3880.8,0.4707]
[1761204967396,2.57578945,3881.1,3880.8,0.4707]
[1761204967659,2.57578945,3881.1,3880.7,0.77363752]
[1761204967934,2.57677917,3880.9,3880.7,0.77363752]
[1761204968100,0.1288,3880.8,3880.7,0.77363752]
[1761204968997,3.15528829,3880.8,3880.7,0.77363752]
[1761204969227,4.71048829,3880.8,3880.7,0.77363752]
[1761204970231,2.58343732,3880.8,3879.5,0.2139]
[1761204970395,2.00493732,3880.1,3879.5,0.2139]
[1761204970736,2.57737574,3880.0,3879.5,0.2139]
[1761204971024,4.58219396,3880.1,3879.5,0.2139]
[1761204971025,2.577414,3879.9,3879.5,0.2139]
[1761204971455,2.577414,3879.9,3879.5,0.6846]
[1761204971611,2.57732376,3880.0,3879.5,0.6846]
[1761204971816,2.57732376,3880.0,3879.3,0.6]
[1761204971817,2.5777182,3879.4,3879.3,0.6]
[1761204972008,5.8727182,3879.4,3879.3,0.6]
[1761204973412,3.295,3879.4,3879.3,0.6]
[1761204973631,2.57753713,3879.7,3879.3,1.0707]
[1761204973632,1.5552,3879.7,3879.3,1.0707]
[1761204973806,2.57738868,3879.9,3879.4,0.4707]
[1761204974009,3.295,3880.1,3879.4,0.4707]
[1761204974010,4.13252907,3880.0,3879.4,0.4707]
[1761204974237,1.5552,3879.8,3879.4,0.4707]
[1761204974442,4.13266543,3879.8,3879.4,0.4707]
[1761204974615,4.13260091,3879.9,3879.4,0.4707]
[1761204974939,1.5552,3879.7,3879.3,0.6]
[1761204975161,6.13766095,3879.7,3879.3,0.6]
[1761204975437,6.13766095,3879.7,3879.3,1.0707]
[1761204975638,3.56013732,3879.7,3879.4,0.4707]
[1761204975838,1.5552,3879.7,3879.4,0.4707]
[1761204976138,1.5552,3879.7,3879.5,0.002]
[1761204976436,2.57752235,3879.7,3879.5,0.002]
[1761204976638,2.57751949,3879.7,3879.5,0.4727]
[1761204977514,2.57758531,3879.6,3879.5,0.002]
[1761204977847,4.13278531,3879.6,3879.5,0.002]
[1761204978654,1.5552,3879.6,3879.5,0.4727]
[1761204980453,1.684,3879.6,3879.5,0.4727]
[1761204980954,0.1288,3879.6,3879.5,0.4727]
[1761204981156,0.1288,3879.6,3879.5,0.85914349]
[1761204981566,0.12632576,3880.6,3879.5,4.15514349]
[1761204981866,1.5552,3880.7,3879.7,2.57751888]
[1761204982074,1.5552,3880.8,3880.0,2.57731108]
[1761204982428,2.57679735,3880.8,3880.1,0.6846]
[1761204982624,2.57685688,3880.7,3880.1,0.6846]
[1761204982828,0.376,3880.9,3880.2,0.4707]
[1761204983090,0.001,3881.1,3880.2,0.4707]
[1761204983375,3.297,3881.1,3880.2,0.4707]
[1761204983529,1.5552,3880.8,3880.2,0.4707]
[1761204983729,2.57677434,3880.9,3880.2,0.79688348]
[1761204984225,2.57677434,3880.9,3880.3,0.4707]
[1761204984462,4.13186357,3881.0,3880.3,0.4707]
[1761204984630,1.5552,3881.0,3880.3,0.4707]
[1761204985254,2.57680493,3880.8,3880.3,0.4707]
[1761204985430,2.57685899,3880.7,3880.3,0.4707]
[1761204985760,1.5552,3881.0,3880.1,0.2139]
[1761204985978,1.5552,3881.0,3880.2,0.4295]
[1761204986182,2.57703404,3880.5,3880.1,3.5089]
[1761204986462,2.57678829,3880.8,3880.1,3.9384]
[1761204986640,2.57699478,3880.5,3880.1,3.9384]
[1761204987157,2.57699478,3880.5,3880.1,0.6434]
[1761204987348,2.5770559,3880.4,3880.1,0.6434]
[1761204987882,2.57714109,3880.3,3879.5,0.38844349]
[1761204988030,1.5552,3880.6,3879.6,3.295]
[1761204988455,2.57744604,3879.9,3879.5,0.002]
[1761204988638,2.5774331,3879.9,3879.5,0.002]
[1761204989028,2.57747679,3879.8,3879.5,0.002]
[1761204989247,2.57738597,3880.0,3879.5,0.002]
[1761204989445,2.57740545,3879.9,3879.5,0.002]
[1761204989866,0.5572,3879.8,3879.5,0.002]
[1761204990045,2.72507118,3879.8,3879.5,0.002]
[1761204990246,2.57747118,3879.8,3879.5,0.002]
[1761204990447,2.57751985,3879.7,3879.5,0.002]
[1761204990647,2.57746714,3879.8,3879.5,0.002]
[1761204991266,2.57756776,3879.7,3879.5,0.002]
[1761204991674,0.1288,3879.6,3879.5,0.002]
[1761204991969,0.128,3879.6,3879.5,0.002]
[1761204992852,0.128,3879.6,3879.5,0.3917]
[1761204993154,0.128,3879.6,3879.5,0.8481]
[1761204993360,0.1288,3879.7,3879.5,2.0481]
[1761204993868,0.1288,3879.7,3879.6,0.4564]
[1761204994168,2.57682862,3880.8,3879.6,0.4564]
[1761204994355,0.1288,3879.8,3879.7,5.87249314]
[1761204994559,0.1288,3880.1,3879.9,2.57736692]
[1761204994938,0.1288,3880.1,3880.0,0.4564]
[1761204997359,0.1288,3880.1,3880.0,3.03371958]
[1761204997965,0.1288,3880.1,3879.6,0.1308]
[1761204998269,0.1288,3879.8,3879.7,0.4564]
[1761205000158,0.1288,3879.8,3879.7,3.03391888]
[1761205000484,0.1288,3879.8,3879.7,3.295]
[1761205000942,0.1288,3879.8,3879.7,3.7514]
[1761205003970,0.1288,3879.8,3879.7,6.32891888]
[1761205004175,0.1288,3879.8,3879.7,4.81602892]
[1761205004966,0.1288,3879.8,3879.7,4.35962892]
[1761205005372,0.1288,3879.8,3879.7,3.295]
[1761205007774,0.1288,3879.8,3879.6,0.002]
[1761205007974,3.00891888,3879.7,3879.6,0.002]
[1761205008353,2.57751888,3879.7,3879.6,0.002]
[1761205008554,3.00891888,3879.7,3879.6,0.002]
[1761205008789,4.56411888,3879.7,3879.6,0.002]
[1761205008989,4.13271888,3879.7,3879.6,0.002]
[1761205009494,2.57716461,3880.3,3879.6,0.002]
[1761205009495,3.294,3880.6,3879.6,0.4584]
[1761205009669,1.5552,3880.0,3879.6,0.4584]
[1761205010103,2.57732583,3880.0,3879.6,0.4584]
[1761205011269,1.5552,3880.0,3879.6,0.4584]
[1761205011465,2.57707042,3880.4,3879.6,0.002]
[1761205011697,2.57722535,3880.2,3879.6,0.4584]
[1761205011995,2.57737148,3880.0,3879.6,0.002]
[1761205012566,2.57740094,3879.9,3879.6,0.002]
[1761205013101,3.13760094,3879.9,3879.6,0.002]
[1761205013699,2.57750681,3879.8,3879.6,0.002]
[1761205015800,2.57734009,3880.0,3879.6,0.002]
[1761205016005,2.57750639,3879.8,3879.6,0.002]
[1761205016302,2.57739896,3879.9,3879.6,0.002]
[1761205016602,1.5552,3880.6,3879.6,0.002]
[1761205016774,2.57726369,3880.1,3879.6,0.4584]
[1761205016977,0.4408,3880.4,3879.6,0.4584]
[1761205017176,2.5772938,3880.1,3879.6,0.4584]
[1761205017588,2.57726437,3880.1,3879.6,0.4584]
[1761205017995,4.13240789,3880.2,3879.6,0.4584]
[1761205018484,0.1288,3879.8,3879.6,0.4584]
[1761205018688,0.1288,3879.8,3879.7,0.63320338]
[1761205019071,0.1288,3879.8,3879.7,1.10350338]
[1761205020005,0.1288,3879.8,3879.6,0.002]
[1761205026709,0.1288,3879.8,3879.6,0.4723]
[1761205027688,0.1288,3879.8,3879.6,0.002]
[1761205029399,0.1288,3879.8,3879.7,3.294]
[1761205029917,0.1288,3879.8,3879.7,3.7643]
[1761205030105,2.57707337,3880.4,3879.7,6.97640414]
[1761205030308,0.1288,3879.9,3879.8,0.4703]
[1761205030701,0.1288,3879.9,3879.8,3.04775244]
[1761205030917,0.1288,3880.1,3879.8,3.04775244]
[1761205031117,0.1288,3880.1,3879.9,3.04766555]
[1761205031318,0.1288,3880.1,3880.0,3.294]
[1761205031486,0.1288,3880.1,3880.0,3.7643]
[1761205033298,2.57731958,3880.0,3879.6,0.1308]
[1761205033498,2.57743506,3879.9,3879.6,0.002]
[1761205033816,2.57751888,3879.7,3879.6,0.002]
[1761205034204,2.91131888,3879.7,3879.6,0.002]
[1761205035412,4.46651888,3879.7,3879.6,0.002]
[1761205040914,4.46571888,3879.7,3879.6,0.002]
[1761205041724,1.5552,3879.6,3879.2,0.002]
[1761205041924,6.54464078,3879.3,3879.2,0.002]
[1761205042125,6.87844078,3879.3,3879.2,0.002]
[1761205042311,2.57805047,3878.9,3878.8,0.3]
[1761205042516,10.0621066,3878.9,3878.8,0.3]
[1761205042758,10.3511066,3878.9,3878.8,0.3]
[1761205043433,10.4799066,3878.9,3878.8,0.3]
[1761205046127,7.1869066,3878.9,3878.8,0.3]
[1761205046436,10.4799066,3878.9,3878.8,0.3]
[1761205049173,10.7799066,3878.9,3878.8,0.3]
[1761205049728,11.2867866,3878.9,3878.8,1e-08]
[1761205049928,11.1579866,3878.9,3878.8,1e-08]
[1761205050848,10.75854228,3878.9,3878.8,1e-08]
[1761205051251,2.57818341,3878.7,3878.3,0.002]
[1761205051453,4.13338341,3878.7,3878.3,0.002]
[1761205051671,4.42238341,3878.7,3878.3,0.002]
[1761205052127,4.52566105,3878.7,3878.3,0.002]